bitfinex/quotes_BTCUSD_20220405
["timestamp","ask_amount","ask_price","bid_price","bid_amount"]
[1649165469346,0.03313946,46422.0,46421.0,1.21185093]
[1649165469496,0.03313946,46422.0,46421.0,1.04191975]
[1649165469597,0.02813946,46422.0,46421.0,1.05281178]
[1649165469694,0.0276,46422.0,46421.0,1.05281178]
[1649165469794,0.0276,46422.0,46421.0,1.70461178]
[1649165470297,0.00023331,46424.0,46421.0,1.70461178]
[1649165470399,0.00023331,46424.0,46423.0,0.6518]
[1649165470498,0.00023331,46424.0,46423.0,1.44420868]
[1649165470598,0.00023331,46424.0,46423.0,1.54420868]
[1649165470699,0.00023331,46424.0,46423.0,1.58730868]
[1649165470998,0.01,46429.0,46423.0,1.78143883]
[1649165471100,0.01,46429.0,46428.0,1.16760398]
[1649165471204,0.01,46429.0,46428.0,1.47849624]
[1649165471299,0.01,46429.0,46428.0,1.62159624]
[1649165471604,0.01,46429.0,46428.0,1.32159624]
[1649165471908,0.01,46429.0,46428.0,1.32159636]
[1649165472408,0.01,46429.0,46428.0,1.37540836]
[1649165472507,0.01,46429.0,46428.0,2.02720836]
[1649165472908,0.01,46429.0,46428.0,2.02720848]
[1649165473411,0.01,46429.0,46428.0,0.816964]
[1649165473557,0.01,46429.0,46428.0,0.196912]
[1649165473658,0.03002537,46429.0,46428.0,0.47110416]
[1649165473761,0.02502537,46429.0,46428.0,0.37110416]
[1649165473858,0.02502537,46429.0,46428.0,0.47110416]
[1649165474710,0.02581128,46429.0,46428.0,0.47123277]
[1649165475212,0.02031128,46429.0,46428.0,0.47123277]
[1649165476652,0.02031128,46429.0,46428.0,0.37123277]
[1649165476754,0.0202213,46429.0,46428.0,0.37123277]
[1649165477355,0.0202213,46429.0,46428.0,0.32813277]
[1649165478160,0.0202213,46429.0,46428.0,0.38194977]
[1649165478661,0.0202213,46429.0,46428.0,0.48194977]
[1649165478863,0.0202213,46429.0,46428.0,0.78194977]
[1649165479640,0.0202213,46429.0,46428.0,0.95188095]
[1649165479891,0.0202213,46429.0,46428.0,1.11031759]
[1649165480444,0.0202213,46429.0,46428.0,0.94038641]
[1649165480543,0.01819918,46429.0,46428.0,0.94038641]
[1649165480942,0.01819918,46429.0,46428.0,0.64038641]
[1649165481141,0.01819918,46429.0,46428.0,0.48194977]
[1649165482096,0.01819918,46429.0,46428.0,0.42813277]
[1649165482197,0.01819918,46429.0,46428.0,0.32813277]
[1649165482294,0.01819918,46429.0,46428.0,0.00607277]
[1649165483444,0.01819918,46429.0,46428.0,0.32713277]
[1649165483542,0.01819918,46429.0,46428.0,0.00507277]
[1649165484593,0.01819918,46429.0,46428.0,0.32713277]
[1649165484943,0.01319918,46429.0,46428.0,0.32713277]
[1649165485094,0.01319918,46429.0,46428.0,0.00507277]
[1649165485294,0.01319918,46429.0,46427.0,0.00600419]
[1649165486348,0.28917111,46429.0,46427.0,0.00600419]
[1649165486642,0.62206,46428.0,46427.0,4.19e-06]
[1649165486738,0.62206,46428.0,46427.0,0.00011669]
[1649165486839,5.331e-05,46426.0,46411.0,0.053844]
[1649165486936,0.30718804,46418.0,46404.0,0.35]
[1649165487088,0.30718804,46418.0,46405.0,0.82206]
[1649165487185,0.30718804,46418.0,46405.0,0.5]
[1649165487490,0.3,46417.0,46406.0,0.32206]
[1649165487594,0.30718804,46418.0,46406.0,0.32206]
[1649165487689,0.05,46417.0,46406.0,0.32206]
[1649165487841,0.05,46417.0,46404.0,0.35]
[1649165487842,0.05,46417.0,46411.0,0.053843]
[1649165487938,0.05,46417.0,46412.0,0.322016]
[1649165488039,0.3,46421.0,46412.0,0.322016]
[1649165488140,0.00054149,46414.0,46413.0,0.32206]
[1649165488939,0.103842,46417.0,46413.0,0.32206]
[1649165489039,0.103842,46417.0,46411.0,0.053843]
[1649165489239,0.00054148,46416.0,46411.0,0.053843]
[1649165489342,0.00054148,46416.0,46410.0,0.1]
[1649165489442,0.30054148,46416.0,46409.0,0.25086888]
[1649165489543,0.37146806,46415.0,46407.0,0.01720914]
[1649165489641,0.32206,46414.0,46407.0,0.01720914]
[1649165489743,0.3,46413.0,46407.0,0.01720914]
[1649165489844,0.32206,46412.0,46407.0,0.01720914]
[1649165490367,0.05,46410.0,46407.0,0.01720914]
[1649165490758,0.05385686,46409.0,46407.0,0.01720914]
[1649165490860,0.10385686,46409.0,46407.0,0.01720914]
[1649165490961,0.05,46409.0,46407.0,0.01720914]
[1649165491061,0.05,46409.0,46408.0,0.32206]
[1649165491256,0.05054151,46412.0,46408.0,0.32206]
[1649165491458,0.00051069,46414.0,46408.0,0.32206]
[1649165491712,0.00051069,46414.0,46400.0,0.64041372]
[1649165491713,0.00051069,46414.0,46413.0,0.25310265]
[1649165491760,0.00051069,46414.0,46413.0,0.05384]
[1649165492309,0.00051069,46414.0,46413.0,0.3759]
[1649165492413,0.00051069,46414.0,46410.0,0.23052402]
[1649165492909,0.23855286,46414.0,46410.0,0.28436802]
[1649165493108,0.28855286,46414.0,46410.0,0.28436802]
[1649165493209,0.28855286,46414.0,46410.0,0.053844]
[1649165493413,0.28855286,46414.0,46409.0,0.00014409]
[1649165493511,0.00730551,46411.0,46409.0,0.00014409]
[1649165493612,0.06116051,46411.0,46409.0,0.00014409]
[1649165493761,0.06116051,46411.0,46408.0,0.09867312]
[1649165493959,0.06116051,46411.0,46404.0,0.053851]
[1649165494103,0.06116051,46411.0,46405.0,0.32206]
[1649165494212,0.06116051,46411.0,46404.0,0.34649224]
[1649165494213,0.30389913,46409.0,46404.0,0.053851]
[1649165494306,0.30389913,46409.0,46405.0,0.32206]
[1649165494407,0.06116051,46411.0,46405.0,0.32206]
[1649165495216,0.3,46410.0,46405.0,0.42206]
[1649165495310,0.3,46410.0,46401.0,0.207697]
[1649165495311,0.35050399,46410.0,46401.0,0.207697]
[1649165495413,0.053856,46409.0,46401.0,0.107697]
[1649165495710,0.053856,46409.0,46401.0,0.34874611]
[1649165495711,0.29960291,46409.0,46401.0,0.34874611]
[1649165495812,0.29960291,46409.0,46401.0,0.44874611]
[1649165496115,0.29960291,46409.0,46402.0,0.263225]
[1649165496215,0.053856,46409.0,46402.0,0.32206]
[1649165496318,0.053856,46409.0,46402.0,0.1]
[1649165496415,0.053856,46409.0,46403.0,0.32206]
[1649165496565,0.00050451,46407.0,46405.0,0.2632]
[1649165496772,0.00050451,46407.0,46405.0,0.107673]
[1649165496870,0.00050451,46407.0,46406.0,0.263195]
[1649165497466,0.01466221,46412.0,46406.0,0.263195]
[1649165497843,0.06847012,46408.0,46406.0,0.263195]
[1649165498342,0.01462112,46408.0,46406.0,0.263195]
[1649165499142,0.01436426,46408.0,46406.0,0.263195]
[1649165499542,0.01436426,46408.0,46407.0,0.01089918]
[1649165499644,0.01436426,46408.0,46407.0,0.33292918]
[1649165499745,0.0005045,46409.0,46407.0,0.32467184]
[1649165499848,0.00730551,46411.0,46408.0,0.06473219]
[1649165499949,0.00730551,46411.0,46409.0,0.263176]
[1649165500048,0.00730551,46411.0,46409.0,0.302776]
[1649165500145,0.00730551,46411.0,46409.0,0.202776]
[1649165500258,0.00050446,46410.0,46409.0,0.302776]
[1649165500358,0.00050446,46410.0,46409.0,0.410442]
[1649165500451,0.00050446,46410.0,46409.0,0.464275]
[1649165500650,0.00050446,46410.0,46409.0,0.73975948]
[1649165500951,0.00050446,46410.0,46409.0,0.68592648]
[1649165501104,0.00730551,46411.0,46409.0,0.68592648]
[1649165501401,0.00730551,46411.0,46410.0,0.16993118]
[1649165501501,0.00730551,46411.0,46410.0,0.76972719]
[1649165501749,0.00050445,46412.0,46410.0,1.36249085]
[1649165501852,0.00050445,46412.0,46411.0,0.163164]
[1649165501951,0.00050445,46412.0,46411.0,0.86545837]
[1649165502048,5.331e-05,46426.0,46413.0,0.6518]
[1649165502145,5.331e-05,46426.0,46418.0,0.35]
[1649165502250,5.331e-05,46426.0,46419.0,0.163126]
[1649165502448,5.331e-05,46426.0,46420.0,0.0396]
[1649165502547,5.331e-05,46426.0,46421.0,0.321926]
[1649165502749,5.331e-05,46426.0,46422.0,0.26555233]
[1649165502848,5.331e-05,46426.0,46423.0,0.163111]
[1649165503149,5.331e-05,46426.0,46423.0,0.216929]
[1649165503649,5.331e-05,46426.0,46416.0,0.1]
[1649165504051,0.26729828,46418.0,46416.0,0.1]
[1649165504151,0.053842,46420.0,46415.0,0.163018]
[1649165504552,0.05384124,46419.0,46416.0,0.053838]
[1649165504654,0.05,46421.0,46417.0,0.322083]
[1649165504852,5.331e-05,46426.0,46417.0,0.422083]
[1649165505051,0.00022483,46420.0,46417.0,0.422083]
[1649165505387,0.00022483,46420.0,46419.0,0.163002]
[1649165505989,0.24974286,46425.0,46419.0,0.163002]
[1649165505990,0.3127018,46425.0,46419.0,0.163002]
[1649165506191,0.3627018,46425.0,46419.0,0.163002]
[1649165506293,0.00053479,46422.0,46419.0,0.163002]
[1649165506842,0.30704629,46425.0,46419.0,0.163002]
[1649165507041,0.053832,46423.0,46419.0,0.270658]
[1649165507647,0.053832,46423.0,46419.0,0.163002]
[1649165507747,0.3,46422.0,46410.0,0.00624195]
[1649165507847,0.35,46422.0,46410.0,0.00624195]
[1649165507950,0.00061593,46420.0,46419.0,0.00011687]
[1649165508096,0.32269893,46420.0,46419.0,0.00011687]
[1649165508195,0.33182095,46420.0,46419.0,0.00740809]
[1649165508296,0.63182095,46420.0,46419.0,0.00740809]
[1649165508398,0.38397468,46405.0,46400.0,0.108704]
[1649165508499,0.24131389,46402.0,46401.0,0.5]
[1649165508602,0.24131389,46402.0,46400.0,0.001]
[1649165508603,0.86339689,46402.0,46400.0,0.001]
[1649165508700,0.78070321,46401.0,46400.0,0.001]
[1649165508797,0.83070321,46401.0,46400.0,0.001]
[1649165508946,0.83070321,46401.0,46398.0,0.001]
[1649165508947,0.05,46401.0,46398.0,0.0006]
[1649165509205,0.25033979,46400.0,46398.0,0.0006]
[1649165509305,0.30033979,46400.0,46398.0,0.0006]
[1649165509405,0.05,46400.0,46398.0,0.0006]
[1649165509508,0.10387311,46400.0,46398.0,0.0006]
[1649165509606,0.10387311,46400.0,46399.0,0.322083]
[1649165509706,0.10387311,46400.0,46398.0,0.0006]
[1649165509811,0.05,46400.0,46399.0,0.322083]
[1649165510007,0.10770631,46407.0,46398.0,0.0006]
[1649165510108,0.15770631,46407.0,46398.0,0.0006]
[1649165510208,0.15770631,46407.0,46399.0,0.322083]
[1649165510319,0.15770631,46407.0,46400.0,0.107701]
[1649165510410,0.30298982,46404.0,46401.0,0.163211]
[1649165510612,0.05,46404.0,46401.0,0.52851064]
[1649165510715,0.05,46413.0,46401.0,0.52851064]
[1649165510812,0.05,46413.0,46404.0,0.322046]
[1649165510913,0.05,46413.0,46405.0,0.3]
[1649165511021,0.05,46413.0,46406.0,0.163188]
[1649165511312,0.593,46422.0,46406.0,0.163188]
[1649165511420,0.48633797,46424.0,46406.0,0.163188]
[1649165511421,0.20437885,46424.0,46406.0,0.163188]
[1649165511511,0.22265257,46416.0,46411.0,0.321996]
[1649165511708,0.27953928,46417.0,46411.0,0.321996]
[1649165512114,0.053836,46419.0,46411.0,0.421996]
[1649165512312,0.00973795,46420.0,46411.0,0.421996]
[1649165512313,0.00912202,46420.0,46413.0,0.163158]
[1649165512414,0.00912202,46420.0,46413.0,0.216989]
[1649165513059,0.00912202,46420.0,46412.0,0.10054109]
[1649165513060,0.4836583,46416.0,46412.0,0.10054109]
[1649165513259,0.30986599,46416.0,46412.0,0.10054109]
[1649165513358,0.30986599,46416.0,46413.0,0.163049]
[1649165513458,0.30986599,46416.0,46412.0,0.1]
[1649165513559,0.30986599,46416.0,46412.0,0.10054109]
[1649165513659,0.30986599,46416.0,46412.0,0.00054109]
[1649165513908,0.23648879,46415.0,46412.0,0.00054109]
[1649165514009,0.28648879,46415.0,46412.0,0.00054109]
[1649165514110,0.322083,46414.0,46412.0,0.00054109]
[1649165514409,0.322083,46414.0,46413.0,0.00011107]
[1649165515009,0.44418679,46415.0,46413.0,0.00011107]
[1649165515610,0.157698,46415.0,46413.0,0.00011107]
[1649165516260,0.1,46415.0,46413.0,0.00011107]
[1649165516461,0.053847,46416.0,46412.0,0.05443038]
[1649165516462,0.153847,46416.0,46412.0,0.05443038]
[1649165516596,0.103847,46416.0,46412.0,0.05443038]
[1649165517047,0.103847,46416.0,46412.0,0.00058838]
[1649165517149,0.23046798,46415.0,46412.0,0.00058838]
[1649165517245,0.23046798,46415.0,46412.0,0.0001231]
[1649165517349,0.28046798,46415.0,46412.0,0.0001231]
[1649165517447,0.44199709,46415.0,46412.0,0.00058838]
[1649165517698,0.49199709,46415.0,46412.0,0.00058838]
[1649165518198,0.54584709,46415.0,46412.0,0.00058838]
[1649165518299,0.59584709,46415.0,46412.0,0.00046528]
[1649165518399,0.59584709,46415.0,46411.0,0.00012355]
[1649165518501,0.25243697,46413.0,46411.0,0.00012355]
[1649165518699,0.35243697,46413.0,46411.0,0.00012355]
[1649165519303,0.1,46413.0,46411.0,0.05012355]
[1649165519505,0.05,46413.0,46412.0,0.322083]
[1649165519705,0.07464966,46414.0,46412.0,0.322083]
[1649165519802,0.02464966,46414.0,46412.0,0.322083]
[1649165520008,0.02464966,46414.0,46411.0,0.05012355]
[1649165520103,0.02464966,46414.0,46412.0,0.322083]
[1649165520352,0.02515268,46414.0,46413.0,0.16993118]
[1649165520450,0.02515268,46414.0,46413.0,0.31089777]
[1649165520597,0.02515268,46414.0,46413.0,0.78885172]
[1649165520699,0.02515268,46414.0,46413.0,0.9393468]
[1649165520996,0.02515268,46414.0,46413.0,1.0593468]
[1649165521097,0.02515268,46414.0,46413.0,1.37520888]
[1649165521448,0.234406,46423.0,46421.0,0.51060841]
[1649165521549,0.00019949,46424.0,46421.0,0.51060841]
[1649165521651,0.00019949,46424.0,46421.0,0.316846]
[1649165521748,0.00019949,46424.0,46421.0,0.053819]
[1649165521897,0.00019949,46424.0,46412.0,0.0396]
[1649165521996,0.05384057,46421.0,46410.0,0.1]
[1649165522094,0.05384057,46421.0,46413.0,0.12]
[1649165522095,0.322083,46420.0,46413.0,0.12]
[1649165522206,0.05384057,46421.0,46413.0,0.12]
[1649165522301,0.05384057,46421.0,46413.0,0.12009992]
[1649165522395,0.322083,46419.0,46413.0,0.12009992]
[1649165522496,0.57742882,46419.0,46414.0,0.00052772]
[1649165522597,0.26985941,46418.0,46414.0,0.00052772]
[1649165522696,0.322083,46417.0,46414.0,0.00052772]
[1649165523098,0.372083,46417.0,46414.0,0.00052772]
[1649165523299,0.425933,46417.0,46414.0,0.00052772]
[1649165523399,0.10385,46417.0,46414.0,0.00052772]
[1649165523499,0.10385,46417.0,46413.0,0.12009992]
[1649165523599,0.10385,46417.0,46414.0,0.322083]
[1649165523700,0.05,46417.0,46414.0,0.322083]
[1649165523799,0.05,46417.0,46414.0,0.422083]
[1649165523898,0.05,46421.0,46414.0,0.1]
[1649165523899,0.3,46420.0,46414.0,0.1]
[1649165524109,0.1,46421.0,46414.0,0.1]
[1649165524257,0.00047202,46420.0,46414.0,0.00012301]
[1649165524358,0.053837,46417.0,46414.0,0.00012301]
[1649165524460,0.24674833,46416.0,46414.0,0.00012301]
[1649165524711,0.29674833,46416.0,46414.0,0.00012301]
[1649165524911,0.56557716,46416.0,46414.0,0.00012301]
[1649165525213,0.58450782,46416.0,46414.0,0.00012301]
[1649165525611,0.322083,46415.0,46414.0,0.00012301]
[1649165525714,0.33775949,46416.0,46414.0,0.00012301]
[1649165525812,0.06893066,46416.0,46414.0,0.00012301]
[1649165526015,0.01893066,46416.0,46414.0,0.00012301]
[1649165526711,0.01893066,46416.0,46415.0,0.00010442]
[1649165526915,0.63065255,46416.0,46415.0,0.00010442]
[1649165527013,0.30856955,46416.0,46415.0,0.00010442]
[1649165527213,0.63065255,46416.0,46415.0,0.00010442]
[1649165527513,0.30856955,46416.0,46415.0,0.00010442]
[1649165529039,0.01893066,46416.0,46415.0,0.00010442]
[1649165529443,0.01893066,46416.0,46415.0,0.32218742]
[1649165529542,0.01893066,46416.0,46415.0,0.01495447]
[1649165529842,0.01893066,46416.0,46415.0,0.33703747]
[1649165530041,0.01893066,46416.0,46415.0,0.01495447]
[1649165530144,0.01893066,46416.0,46415.0,0.33703747]
[1649165530245,0.01893066,46416.0,46415.0,0.17798747]
[1649165530391,0.01893066,46416.0,46415.0,0.01495447]
[1649165530692,0.01893066,46416.0,46415.0,0.01507246]
[1649165530794,0.01893066,46416.0,46415.0,0.33715546]
[1649165530891,0.01893066,46416.0,46415.0,0.01507246]
[1649165531492,0.01893066,46416.0,46415.0,0.3402261]
[1649165531757,0.01893066,46416.0,46415.0,0.0181431]
[1649165531851,0.01893066,46416.0,46415.0,0.3402261]
[1649165531948,0.01893066,46416.0,46415.0,0.0181431]
[1649165532653,0.01940239,46416.0,46415.0,0.0181431]
[1649165532753,0.64148539,46416.0,46415.0,0.0131431]
[1649165532855,0.31940239,46416.0,46415.0,0.0131431]
[1649165533055,0.64148539,46416.0,46415.0,0.0131431]
[1649165533554,0.64148539,46416.0,46415.0,0.0186083]
[1649165533859,0.34148539,46416.0,46415.0,0.0186083]
[1649165534060,0.55531089,46416.0,46415.0,0.0047983]
[1649165534459,0.55531089,46416.0,46411.0,0.05]
[1649165534460,0.322083,46415.0,46411.0,0.05]
[1649165534608,0.322083,46413.0,46411.0,0.05]
[1649165534707,0.375946,46413.0,46411.0,0.05]
[1649165534810,0.675946,46413.0,46411.0,0.05]
[1649165535258,0.05,46412.0,46411.0,0.05]
[1649165535402,0.372083,46412.0,46411.0,0.05]
[1649165535502,0.66446201,46412.0,46411.0,0.05]
[1649165535701,0.053867,46409.0,46393.0,0.001]
[1649165535807,0.24520187,46400.0,46393.0,0.001]
[1649165536101,0.29520187,46400.0,46393.0,0.001]
[1649165536410,0.322083,46399.0,46393.0,0.001]
[1649165537002,0.322083,46399.0,46396.0,0.00048611]
[1649165537406,0.34906798,46400.0,46396.0,0.00048611]
[1649165537510,0.29020187,46400.0,46396.0,0.00048611]
[1649165537758,0.045,46400.0,46396.0,0.00048611]
[1649165537857,0.05,46405.0,46396.0,0.00048611]
[1649165538055,0.05,46405.0,46399.0,0.00440935]
[1649165538256,0.05,46406.0,46399.0,0.00440935]
[1649165538357,0.01409205,46408.0,46399.0,0.00440935]
[1649165538458,0.01409205,46408.0,46401.0,0.053852]
[1649165538555,0.22778734,46408.0,46401.0,0.28147496]
[1649165538659,0.28487069,46407.0,46401.0,0.053852]
[1649165539094,0.33487069,46407.0,46401.0,0.053852]
[1649165539293,0.32987069,46407.0,46401.0,0.053852]
[1649165539395,0.32987069,46407.0,46402.0,0.00048598]
[1649165539744,0.05385024,46409.0,46402.0,0.00048598]
[1649165540049,0.322083,46408.0,46402.0,0.00048598]
[1649165540142,0.05385024,46409.0,46402.0,0.00048598]
[1649165540244,0.322083,46408.0,46402.0,0.00048598]
[1649165540345,0.00999544,46404.0,46402.0,0.00048598]
[1649165540445,0.00999544,46404.0,46399.0,0.25]
[1649165540545,0.322083,46403.0,46399.0,0.25]
[1649165540647,0.375941,46403.0,46399.0,0.25]
[1649165540745,0.375941,46403.0,46398.0,0.0006]
[1649165540947,0.42980031,46403.0,46398.0,0.0006]
[1649165541248,0.47980031,46403.0,46398.0,0.0006]
[1649165541343,0.29693345,46402.0,46398.0,0.0006]
[1649165541444,0.22514194,46399.0,46398.0,0.0006]
[1649165541547,0.54722494,46399.0,46398.0,0.0006]
[1649165541848,0.59722494,46399.0,46398.0,0.00107053]
[1649165542895,0.59722494,46399.0,46398.0,0.0006]
[1649165544595,0.59771554,46399.0,46398.0,0.00083423]
[1649165544997,0.60787,46399.0,46398.0,0.00299851]
[1649165549304,0.69747,46399.0,46398.0,9.851e-05]
[1649165549451,0.98947685,46399.0,46398.0,9.851e-05]
[1649165549553,0.69747,46399.0,46398.0,9.851e-05]
[1649165550105,0.69747,46399.0,46393.0,0.001]
[1649165550261,0.10776395,46397.0,46393.0,0.001]
[1649165550399,0.4694469,46396.0,46393.0,0.001]
[1649165550801,0.361683,46396.0,46393.0,0.001]
[1649165551400,0.322083,46396.0,46393.0,0.001]
[1649165551501,0.322083,46396.0,46393.0,0.00150756]
[1649165552102,0.372083,46396.0,46393.0,0.00150756]
[1649165552510,0.372083,46396.0,46393.0,0.001]
[1649165552705,0.372083,46396.0,46393.0,0.00151669]
[1649165552809,0.000507,46395.0,46394.0,0.00109455]
[1649165552960,0.33025564,46395.0,46394.0,0.00109455]
[1649165554200,0.23445564,46395.0,46394.0,0.00109455]
[1649165555005,0.23496264,46395.0,46394.0,0.00109455]
[1649165556157,0.23496264,46395.0,46387.0,0.109729]
[1649165556305,0.322083,46393.0,46392.0,0.00048458]
[1649165556655,0.60684004,46393.0,46392.0,0.00048458]
[1649165557355,0.71458204,46393.0,46389.0,0.00054106]
[1649165557457,0.19374126,46392.0,46389.0,0.00054106]
[1649165557556,0.322127,46391.0,46390.0,0.00048459]
[1649165557655,0.24761126,46392.0,46390.0,0.00048459]
[1649165557756,0.322127,46391.0,46390.0,0.00048459]
[1649165558311,0.32213,46391.0,46390.0,0.00048459]
[1649165558410,0.24761126,46392.0,46390.0,0.00048459]
[1649165558512,0.32213,46391.0,46389.0,0.00054106]
[1649165558610,0.24761126,46392.0,46389.0,0.00054106]
[1649165558712,0.32213,46391.0,46389.0,0.00054106]
[1649165558813,0.24761126,46392.0,46389.0,0.00054106]
[1649165559116,0.32213,46391.0,46389.0,0.00054106]
[1649165559214,0.32213,46391.0,46385.0,0.004]
[1649165560215,0.2706775,46387.0,46385.0,0.004]
[1649165560371,0.5928075,46387.0,46385.0,0.004]
[1649165563497,0.053883,46389.0,46385.0,0.004]
[1649165563697,0.32213,46390.0,46386.0,0.29348866]
[1649165563796,0.05960006,46391.0,46386.0,0.29348866]
[1649165564247,0.00573006,46391.0,46387.0,0.05387]
[1649165564850,0.00517333,46391.0,46387.0,0.05387]
[1649165565402,0.00517333,46391.0,46386.0,0.27339909]
[1649165565598,0.00517333,46391.0,46386.0,0.00473501]
[1649165565799,0.00517333,46391.0,46386.0,0.00421218]
[1649165565900,0.00517333,46391.0,46386.0,0.004735]
[1649165566400,0.29010003,46389.0,46386.0,0.004735]
[1649165566902,0.29010003,46389.0,46386.0,0.0046451]
[1649165567051,0.29447922,46389.0,46386.0,0.00585814]
[1649165567156,0.34836022,46389.0,46386.0,0.00585814]
[1649165567360,0.34836022,46389.0,46378.0,0.002]
[1649165567361,2.15,46388.0,46378.0,0.002]
[1649165567454,0.62213,46387.0,46378.0,0.0001]
[1649165567561,0.6518,46385.0,46378.0,0.0001]
[1649165567667,0.32213,46383.0,46378.0,0.0001]
[1649165567859,0.05,46382.0,46378.0,0.0001]
[1649165567970,0.62213,46381.0,46378.0,0.0001]
[1649165568056,0.66523,46381.0,46378.0,0.0001]
[1649165568153,0.66439701,46381.0,46378.0,0.0001]
[1649165568256,0.71829701,46381.0,46378.0,0.0001]
[1649165568354,0.50565986,46380.0,46378.0,0.0001]
[1649165568455,0.62213,46379.0,46378.0,0.0001]
[1649165568658,0.3,46379.0,46378.0,0.0001]
[1649165568756,0.50565986,46380.0,46378.0,0.0001]
[1649165568757,0.24440891,46380.0,46378.0,0.0001]
[1649165568856,0.54440891,46380.0,46378.0,0.0001]
[1649165569099,0.24440891,46380.0,46378.0,0.0001]
[1649165569302,0.622161,46379.0,46378.0,0.0001]
[1649165569401,0.622161,46379.0,46377.0,0.00116788]
[1649165569499,0.24440891,46380.0,46377.0,0.00116788]
[1649165569601,0.322161,46379.0,46377.0,0.00116788]
[1649165569703,0.54440891,46380.0,46377.0,0.00116788]
[1649165569953,0.55417162,46378.0,46377.0,0.00116788]
[1649165570153,0.23201062,46378.0,46377.0,0.00116788]
[1649165571052,0.85417162,46378.0,46377.0,0.00116788]
[1649165571304,0.23201062,46378.0,46377.0,0.00116788]
[1649165571803,0.85417162,46378.0,46377.0,0.00116788]
[1649165572004,0.55417162,46378.0,46377.0,0.00116788]
[1649165572105,0.82603827,46379.0,46377.0,0.00116788]
[1649165572207,0.82603827,46379.0,46378.0,0.322161]
[1649165572306,0.82603827,46379.0,46378.0,0.422161]
[1649165572603,0.82603827,46379.0,46378.0,0.1]
[1649165572704,0.82603827,46379.0,46377.0,0.05504488]
[1649165572881,0.00056566,46378.0,46377.0,0.00137764]
[1649165573082,0.24173863,46378.0,46377.0,0.00137764]
[1649165573274,0.00056566,46378.0,46377.0,0.00137764]
[1649165573574,0.00056566,46378.0,46377.0,0.05526164]
[1649165573774,0.00056566,46378.0,46377.0,0.00137764]
[1649165573880,0.00538348,46378.0,46377.0,0.00137764]
[1649165574978,0.00538348,46378.0,46377.0,0.05526364]
[1649165575277,0.00538348,46378.0,46377.0,0.37742464]
[1649165575377,0.00538348,46378.0,46377.0,0.05526364]
[1649165575482,0.00538348,46378.0,46377.0,0.37742464]
[1649165575582,0.00538348,46378.0,46377.0,0.05526364]
[1649165575679,0.00538348,46378.0,46377.0,0.37742464]
[1649165575780,0.00538348,46378.0,46377.0,0.05526364]
[1649165576180,0.01064714,46378.0,46377.0,0.05526364]
[1649165576290,0.01064714,46378.0,46377.0,0.31717964]
[1649165576430,0.01064714,46378.0,46377.0,0.05526364]
[1649165577292,0.01064714,46378.0,46377.0,0.00137764]
[1649165578446,0.00538348,46378.0,46377.0,0.00137764]
[1649165578545,0.33223751,46379.0,46377.0,0.00137764]
[1649165578898,0.00056566,46378.0,46377.0,0.00137764]
[1649165579495,0.00056566,46378.0,46377.0,0.32353864]
[1649165579597,0.00056566,46378.0,46377.0,0.26329364]
[1649165579744,0.00056566,46378.0,46377.0,0.32353864]
[1649165579846,0.00056566,46378.0,46377.0,0.26329364]
[1649165579948,0.01020421,46378.0,46377.0,0.00137764]
[1649165580755,0.63236521,46378.0,46377.0,0.00137764]
[1649165580853,0.33247611,46378.0,46377.0,0.00137764]
[1649165581154,0.322166,46378.0,46377.0,0.00137764]
[1649165581256,0.05,46378.0,46377.0,0.00137764]
[1649165581453,0.372166,46378.0,46377.0,0.00137764]
[1649165581557,0.05,46378.0,46377.0,0.00137764]
[1649165581702,0.372166,46378.0,46377.0,0.00137764]
[1649165582105,0.38059033,46378.0,46377.0,0.00339666]
[1649165582307,0.68059033,46378.0,46377.0,0.00339666]
[1649165582908,0.68136811,46378.0,46377.0,0.00339666]
[1649165583008,0.05920211,46378.0,46377.0,0.00339666]
[1649165583558,0.00920211,46378.0,46377.0,0.00339666]
[1649165583659,0.00920211,46378.0,46377.0,0.32556266]
[1649165583758,0.00920211,46378.0,46377.0,0.36866266]
[1649165583859,0.00696562,46378.0,46377.0,0.37754799]
[1649165583958,0.00696562,46378.0,46377.0,0.42052264]
[1649165584110,0.00696562,46378.0,46377.0,0.09835664]
[1649165584207,0.00696562,46378.0,46377.0,0.19835664]
[1649165584308,0.00696562,46378.0,46377.0,0.09835664]
[1649165584410,0.00696562,46378.0,46377.0,0.05525664]
[1649165584606,0.00696562,46378.0,46377.0,0.00137764]
[1649165584706,0.2942598,46378.0,46377.0,0.00137764]
[1649165585611,0.34409233,46378.0,46377.0,0.00137764]
[1649165585913,0.34409233,46378.0,46377.0,0.00370055]
[1649165586111,0.64409233,46378.0,46377.0,0.00370055]
[1649165586216,0.96625833,46378.0,46377.0,0.00370055]
[1649165586611,0.66625833,46378.0,46377.0,0.00370055]
[1649165587063,0.96625833,46378.0,46377.0,0.00370055]
[1649165587365,0.96634123,46378.0,46377.0,0.00370055]
[1649165587467,0.66634123,46378.0,46377.0,0.00370055]
[1649165587564,0.96634123,46378.0,46377.0,0.00370055]
[1649165588303,0.34417523,46378.0,46377.0,0.00370055]
[1649165588403,0.05688105,46378.0,46377.0,0.00370055]
[1649165588501,0.00688105,46378.0,46377.0,0.00370055]
[1649165588600,0.00688105,46378.0,46377.0,0.32586655]
[1649165588800,0.00688105,46378.0,46377.0,0.00370055]
[1649165589001,0.00688105,46378.0,46377.0,0.32586655]
[1649165589100,0.00688105,46378.0,46377.0,0.62586655]
[1649165589199,0.00688105,46378.0,46377.0,0.72586655]
[1649165589405,0.00679815,46378.0,46377.0,1.55352679]
[1649165589503,0.50679815,46378.0,46377.0,1.71513879]
[1649165589702,0.50679815,46378.0,46377.0,1.75823879]
[1649165590004,0.50679815,46378.0,46377.0,1.7691422]
[1649165590103,0.50679815,46378.0,46377.0,1.75823879]
[1649165590203,0.50679815,46378.0,46377.0,1.76860383]
[1649165590302,0.50679815,46378.0,46377.0,2.41808092]
[1649165590503,0.50679815,46378.0,46377.0,1.76628092]
[1649165590806,0.55679815,46378.0,46377.0,1.76628092]
[1649165591104,0.55679815,46378.0,46377.0,1.75591588]
[1649165591205,0.55679815,46378.0,46377.0,1.40591588]
[1649165591305,0.55679815,46378.0,46377.0,0.26298964]
[1649165591408,0.55679815,46378.0,46377.0,0.58515564]
[1649165591506,0.55679815,46378.0,46377.0,0.48515564]
[1649165591753,0.55679815,46378.0,46377.0,0.32354364]
[1649165592353,0.55679815,46378.0,46377.0,0.60126276]